[Event "Early-Titled-Tuesday-Blitz-September-12-2023"]
[Site "Chess.com"]
[Date "2023.09.12"]
[Round "2"]
[White "vladgoncharov"]
[Black "MusicCityMaster"]
[Result "0-1"]
[WhiteElo "2540"]
[BlackElo "2390"]
[TimeControl "180+1"]
[EndTime "8:18:28 PDT"]
[Termination "MusicCityMaster won on time"]

1. d4 {[%clk 0:03:00.9]} 1... Nf6 {[%clk 0:02:59.3]} 2. c4 {[%clk 0:03:00.2]}
2... c5 {[%clk 0:03:00]} 3. d5 {[%clk 0:02:59.7]} 3... b5 {[%clk 0:03:00.7]} 4.
cxb5 {[%clk 0:02:58.9]} 4... a6 {[%clk 0:03:01.5]} 5. b6 {[%clk 0:02:59]} 5...
e6 {[%clk 0:03:00.4]} 6. Nc3 {[%clk 0:02:57.3]} 6... Nxd5 {[%clk 0:03:01.1]} 7.
Nxd5 {[%clk 0:02:57.1]} 7... exd5 {[%clk 0:03:02]} 8. Qxd5 {[%clk 0:02:57]} 8...
Nc6 {[%clk 0:03:02.7]} 9. e3 {[%clk 0:02:51.6]} 9... Be7 {[%clk 0:03:01.8]} 10.
Bc4 {[%clk 0:02:50.2]} 10... O-O {[%clk 0:03:01.1]} 11. Nf3 {[%clk 0:02:50]}
11... Rb8 {[%clk 0:03:01]} 12. O-O {[%clk 0:02:49.2]} 12... Rxb6 {[%clk
0:03:00.9]} 13. Rd1 {[%clk 0:02:48.7]} 13... Bf6 {[%clk 0:02:44.8]} 14. Qxc5
{[%clk 0:02:42.2]} 14... Nb4 {[%clk 0:02:31.6]} 15. a3 {[%clk 0:02:09.3]} 15...
d6 {[%clk 0:02:05.2]} 16. Qa5 {[%clk 0:01:54]} 16... Nc6 {[%clk 0:01:55]} 17.
Qd2 {[%clk 0:01:48.8]} 17... Ne5 {[%clk 0:01:33.2]} 18. Nxe5 {[%clk 0:01:47.6]}
18... Bxe5 {[%clk 0:01:34.1]} 19. f4 {[%clk 0:01:39]} 19... Bf6 {[%clk
0:01:27.9]} 20. Ra2 {[%clk 0:01:37.4]} 20... Bb7 {[%clk 0:01:17.4]} 21. b4
{[%clk 0:01:35.8]} 21... Re8 {[%clk 0:01:09.2]} 22. Bb2 {[%clk 0:01:31.4]} 22...
Bxb2 {[%clk 0:01:00.5]} 23. Rxb2 {[%clk 0:01:30.9]} 23... d5 {[%clk 0:01:00.2]}
24. Bxd5 {[%clk 0:01:19.5]} 24... Bxd5 {[%clk 0:00:56.6]} 25. Qxd5 {[%clk
0:01:18.8]} 25... Qf6 {[%clk 0:00:53.4]} 26. Re2 {[%clk 0:01:16.4]} 26... h6
{[%clk 0:00:47.1]} 27. Qd4 {[%clk 0:01:13.7]} 27... Qg6 {[%clk 0:00:38.7]} 28.
e4 {[%clk 0:01:11.1]} 28... Rc6 {[%clk 0:00:38.2]} 29. e5 {[%clk 0:01:07.8]}
29... Rec8 {[%clk 0:00:34.6]} 30. Qd3 {[%clk 0:01:05.7]} 30... Qg4 {[%clk
0:00:33.7]} 31. Red2 {[%clk 0:00:55.4]} 31... Qxf4 {[%clk 0:00:31.6]} 32. Qd5
{[%clk 0:00:50.8]} 32... Qe3+ {[%clk 0:00:30.3]} 33. Kf1 {[%clk 0:00:48.8]}
33... Rc1 {[%clk 0:00:28.5]} 34. Qd3 {[%clk 0:00:33.4]} 34... Qxe5 {[%clk
0:00:26.4]} 35. h3 {[%clk 0:00:28.3]} 35... R8c4 {[%clk 0:00:18.2]} 36. Kg1
{[%clk 0:00:24.9]} 36... R1c3 {[%clk 0:00:16.5]} 37. Qd8+ {[%clk 0:00:24.2]}
37... Kh7 {[%clk 0:00:17.1]} 38. Rf1 {[%clk 0:00:16.9]} 38... Qe3+ {[%clk
0:00:16]} 39. Rdf2 {[%clk 0:00:17.1]} 39... Rc2 {[%clk 0:00:13.9]} 40. Qd6
{[%clk 0:00:07.8]} 40... Rxf2 {[%clk 0:00:11.6]} 41. Rxf2 {[%clk 0:00:06.4]}
41... Rc1+ {[%clk 0:00:12.1]} 42. Kh2 {[%clk 0:00:05.7]} 42... Qxf2 {[%clk
0:00:12.8]} 43. Qd3+ {[%clk 0:00:05.8]} 43... g6 {[%clk 0:00:12.1]} 44. Qe4
{[%clk 0:00:03.6]} 44... Qg1+ {[%clk 0:00:11.8]} 45. Kg3 {[%clk 0:00:03.1]}
45... Rc3+ {[%clk 0:00:12.5]} 46. Kh4 {[%clk 0:00:01.5]} 46... Qf2+ {[%clk
0:00:12.5]} 0-1

[Event "Early-Titled-Tuesday-Blitz-September-12-2023"]
[Site "Chess.com"]
[Date "2023.09.12"]
[Round "2"]
[White "BeautiFullMindChess"]
[Black "Stewie_89"]
[Result "0-1"]
[WhiteElo "2190"]
[BlackElo "2489"]
[TimeControl "180+1"]
[EndTime "8:18:31 PDT"]
[Termination "Stewie_89 won by checkmate"]

1. e4 {[%clk 0:02:50.8]} 1... Nf6 {[%clk 0:02:59]} 2. e5 {[%clk 0:02:50.8]} 2...
Nd5 {[%clk 0:02:59.6]} 3. d4 {[%clk 0:02:50.3]} 3... d6 {[%clk 0:03:00]} 4. Nf3
{[%clk 0:02:46.6]} 4... g6 {[%clk 0:03:00.2]} 5. Bc4 {[%clk 0:02:15.8]} 5... c6
{[%clk 0:02:59.8]} 6. exd6 {[%clk 0:02:05.7]} 6... Qxd6 {[%clk 0:02:56]} 7. O-O
{[%clk 0:02:04.4]} 7... Bg7 {[%clk 0:02:54.9]} 8. h3 {[%clk 0:02:03.7]} 8... O-O
{[%clk 0:02:53.8]} 9. Nbd2 {[%clk 0:02:02.2]} 9... Bf5 {[%clk 0:02:52.6]} 10.
Re1 {[%clk 0:01:58.6]} 10... Na6 {[%clk 0:02:39]} 11. Bb3 {[%clk 0:01:40.2]}
11... c5 {[%clk 0:02:22.6]} 12. Nc4 {[%clk 0:01:08.5]} 12... Qd8 {[%clk
0:02:19.9]} 13. Bg5 {[%clk 0:00:51.7]} 13... h6 {[%clk 0:02:11.6]} 14. Bh4
{[%clk 0:00:51.5]} 14... b5 {[%clk 0:01:53.2]} 15. dxc5 {[%clk 0:00:20]} 15...
bxc4 {[%clk 0:01:52]} 16. Bxc4 {[%clk 0:00:20.9]} 16... Nac7 {[%clk 0:01:48.1]}
17. c3 {[%clk 0:00:20.6]} 17... a5 {[%clk 0:01:46.1]} 18. Qe2 {[%clk 0:00:15.8]}
18... Qc8 {[%clk 0:01:13.2]} 19. Rad1 {[%clk 0:00:14.7]} 19... Be6 {[%clk
0:01:06.4]} 20. Nd4 {[%clk 0:00:14.5]} 20... Nf4 {[%clk 0:00:59.9]} 21. Qf3
{[%clk 0:00:14.2]} 21... Bxc4 {[%clk 0:00:59.4]} 22. Qxf4 {[%clk 0:00:14.6]}
22... g5 {[%clk 0:00:50.4]} 23. Bxg5 {[%clk 0:00:13.7]} 23... hxg5 {[%clk
0:00:51]} 24. Qxg5 {[%clk 0:00:14.4]} 24... f6 {[%clk 0:00:43.9]} 25. Qg6 {[%clk
0:00:13.3]} 25... Bf7 {[%clk 0:00:43.5]} 26. Qg3 {[%clk 0:00:12.9]} 26... e5
{[%clk 0:00:43.3]} 27. Nf3 {[%clk 0:00:12.8]} 27... Rd8 {[%clk 0:00:39.7]} 28.
Nh4 {[%clk 0:00:13.7]} 28... Rxd1 {[%clk 0:00:38.8]} 29. Rxd1 {[%clk 0:00:14.6]}
29... Ne8 {[%clk 0:00:38.8]} 30. b4 {[%clk 0:00:13.4]} 30... axb4 {[%clk
0:00:38.4]} 31. cxb4 {[%clk 0:00:14.3]} 31... Rxa2 {[%clk 0:00:37.7]} 32. c6
{[%clk 0:00:14.4]} 32... Qxc6 {[%clk 0:00:31]} 33. Nf5 {[%clk 0:00:13.8]} 33...
Qc2 {[%clk 0:00:31.1]} 34. Qg4 {[%clk 0:00:10.5]} 34... Be6 {[%clk 0:00:17.3]}
35. Kh1 {[%clk 0:00:11.4]} 35... Qxf5 {[%clk 0:00:16.3]} 36. Qg3 {[%clk
0:00:10.2]} 36... Qxf2 {[%clk 0:00:15.6]} 37. Qg6 {[%clk 0:00:09.3]} 37... Bf7
{[%clk 0:00:14.5]} 38. Qg4 {[%clk 0:00:09]} 38... Qe2 {[%clk 0:00:14.8]} 39.
Qxe2 {[%clk 0:00:08.5]} 39... Rxe2 {[%clk 0:00:15.7]} 40. Rd7 {[%clk 0:00:09]}
40... Rb2 {[%clk 0:00:15.9]} 41. Rb7 {[%clk 0:00:09.8]} 41... Nd6 {[%clk
0:00:15.9]} 42. Rb8+ {[%clk 0:00:10.7]} 42... Kh7 {[%clk 0:00:16.2]} 43. b5
{[%clk 0:00:11.6]} 43... Rxb5 {[%clk 0:00:15.6]} 44. Ra8 {[%clk 0:00:12.5]}
44... e4 {[%clk 0:00:15]} 45. Kh2 {[%clk 0:00:13.4]} 45... f5 {[%clk 0:00:15.2]}
46. Ra4 {[%clk 0:00:14.3]} 46... Be5+ {[%clk 0:00:15.1]} 47. g3 {[%clk
0:00:14.3]} 47... Rb2+ {[%clk 0:00:15.7]} 48. Kg1 {[%clk 0:00:15.2]} 48... e3
{[%clk 0:00:15.3]} 49. Kf1 {[%clk 0:00:16.1]} 49... Bc4+ {[%clk 0:00:14.5]} 50.
Ke1 {[%clk 0:00:16.5]} 50... Bc3+ {[%clk 0:00:14.6]} 51. Kd1 {[%clk 0:00:16.4]}
51... e2+ {[%clk 0:00:15]} 52. Kc1 {[%clk 0:00:17.3]} 52... e1=Q# {[%clk
0:00:15.9]} 0-1

[Event "Early-Titled-Tuesday-Blitz-September-12-2023"]
[Site "Chess.com"]
[Date "2023.09.12"]
[Round "2"]
[White "SHIVACalypso"]
[Black "HrvojeZagreb"]
[Result "0-1"]
[WhiteElo "2476"]
[BlackElo "2259"]
[TimeControl "180+1"]
[EndTime "8:18:33 PDT"]
[Termination "HrvojeZagreb won by resignation"]

1. e4 {[%clk 0:03:00.9]} 1... c5 {[%clk 0:02:59.4]} 2. Nf3 {[%clk 0:03:00]} 2...
a6 {[%clk 0:02:59.4]} 3. d4 {[%clk 0:02:55.7]} 3... cxd4 {[%clk 0:03:00.3]} 4.
Nxd4 {[%clk 0:02:55.4]} 4... Nf6 {[%clk 0:02:59.7]} 5. e5 {[%clk 0:02:51.6]}
5... Qa5+ {[%clk 0:02:58.1]} 6. Nc3 {[%clk 0:02:44.2]} 6... Qxe5+ {[%clk
0:02:57.7]} 7. Be2 {[%clk 0:02:44]} 7... Nc6 {[%clk 0:02:55.2]} 8. Be3 {[%clk
0:02:40.4]} 8... e6 {[%clk 0:02:26.1]} 9. O-O {[%clk 0:02:35.2]} 9... d5 {[%clk
0:02:18.6]} 10. Re1 {[%clk 0:02:33.1]} 10... Be7 {[%clk 0:01:58]} 11. g3 {[%clk
0:02:17.4]} 11... Qc7 {[%clk 0:01:56.8]} 12. Nxc6 {[%clk 0:01:59.6]} 12... bxc6
{[%clk 0:01:53.8]} 13. Bf4 {[%clk 0:01:47.7]} 13... Bd6 {[%clk 0:01:45.9]} 14.
Bxd6 {[%clk 0:01:39.1]} 14... Qxd6 {[%clk 0:01:46.8]} 15. Bf3 {[%clk 0:01:32.1]}
15... O-O {[%clk 0:01:43]} 16. Ne4 {[%clk 0:01:29.9]} 16... Nxe4 {[%clk
0:01:41.5]} 17. Bxe4 {[%clk 0:01:30.8]} 17... Qb4 {[%clk 0:01:37.6]} 18. Bd3
{[%clk 0:01:27.2]} 18... Qxb2 {[%clk 0:01:35.9]} 19. Rb1 {[%clk 0:01:22.7]}
19... Qxa2 {[%clk 0:01:33.2]} 20. Qh5 {[%clk 0:01:21.9]} 20... g6 {[%clk
0:01:30.8]} 21. Qh6 {[%clk 0:01:22]} 21... Qa3 {[%clk 0:01:24.3]} 22. Re5 {[%clk
0:01:19.5]} 22... Qe7 {[%clk 0:01:19.7]} 23. Rh5 {[%clk 0:01:12.9]} 23... f5
{[%clk 0:01:09.6]} 24. Rh4 {[%clk 0:01:12]} 24... e5 {[%clk 0:00:55.1]} 25. Rb6
{[%clk 0:01:07]} 25... e4 {[%clk 0:00:41.4]} 26. Be2 {[%clk 0:01:05.1]} 26...
Rf6 {[%clk 0:00:23.5]} 27. Qg5 {[%clk 0:00:59.6]} 27... a5 {[%clk 0:00:20.4]}
28. Rxc6 {[%clk 0:00:58.8]} 28... Rf7 {[%clk 0:00:15.9]} 29. Rxg6+ {[%clk
0:00:48.3]} 29... hxg6 {[%clk 0:00:13.4]} 30. Qxg6+ {[%clk 0:00:49.2]} 30... Rg7
{[%clk 0:00:13.6]} 31. Qh6 {[%clk 0:00:49.5]} 31... Rh7 {[%clk 0:00:12.2]} 32.
Qg6+ {[%clk 0:00:49.1]} 32... Kh8 {[%clk 0:00:10.6]} 33. Rxh7+ {[%clk
0:00:34.4]} 33... Qxh7 {[%clk 0:00:10.3]} 34. Qf6+ {[%clk 0:00:35.3]} 34... Qg7
{[%clk 0:00:10.3]} 35. Qd8+ {[%clk 0:00:31.4]} 35... Kh7 {[%clk 0:00:10.7]} 36.
Qh4+ {[%clk 0:00:31]} 36... Kg8 {[%clk 0:00:11.1]} 37. Qd8+ {[%clk 0:00:31]}
37... Kf7 {[%clk 0:00:11.3]} 38. Bh5+ {[%clk 0:00:30.8]} 38... Ke6 {[%clk
0:00:08.6]} 39. Qe8+ {[%clk 0:00:23.8]} 39... Kd6 {[%clk 0:00:07.5]} 40. Qd8+
{[%clk 0:00:23.6]} 40... Kc6 {[%clk 0:00:06.8]} 41. Be8+ {[%clk 0:00:23.7]}
41... Kc5 {[%clk 0:00:06.2]} 42. Ba4 {[%clk 0:00:13.9]} 42... f4 {[%clk
0:00:05.3]} 43. Qe8 {[%clk 0:00:10.5]} 43... Qa1+ {[%clk 0:00:04.3]} 44. Kg2
{[%clk 0:00:10.3]} 44... Bh3+ {[%clk 0:00:04.9]} 45. Kxh3 {[%clk 0:00:10.4]}
45... Rxe8 {[%clk 0:00:05.7]} 46. Bxe8 {[%clk 0:00:09.7]} 46... e3 {[%clk
0:00:06.1]} 47. fxe3 {[%clk 0:00:09.5]} 47... fxe3 {[%clk 0:00:06.9]} 48. Bh5
{[%clk 0:00:10.1]} 48... Qf1+ {[%clk 0:00:05.8]} 49. Kg4 {[%clk 0:00:09.6]}
49... e2 {[%clk 0:00:06.7]} 0-1

[Event "Early-Titled-Tuesday-Blitz-September-12-2023"]
[Site "Chess.com"]
[Date "2023.09.12"]
[Round "2"]
[White "Kacparov"]
[Black "Fh2411"]
[Result "1-0"]
[WhiteElo "2921"]
[BlackElo "2588"]
[TimeControl "180+1"]
[EndTime "8:18:35 PDT"]
[Termination "Kacparov won on time"]

1. e4 {[%clk 0:03:00.4]} 1... c6 {[%clk 0:02:54.9]} 2. d4 {[%clk 0:03:00.2]}
2... d5 {[%clk 0:02:53.7]} 3. Nc3 {[%clk 0:03:00.9]} 3... dxe4 {[%clk
0:02:53.3]} 4. Nxe4 {[%clk 0:03:01.8]} 4... Nf6 {[%clk 0:02:53.7]} 5. Nxf6+
{[%clk 0:03:02.3]} 5... exf6 {[%clk 0:02:54.6]} 6. c3 {[%clk 0:03:03]} 6... Bd6
{[%clk 0:02:50.6]} 7. Bd3 {[%clk 0:03:03.7]} 7... O-O {[%clk 0:02:50.1]} 8. Ne2
{[%clk 0:03:04.4]} 8... Re8 {[%clk 0:02:49.6]} 9. Qc2 {[%clk 0:03:05.1]} 9... h5
{[%clk 0:02:49.8]} 10. Be3 {[%clk 0:03:04.9]} 10... Nd7 {[%clk 0:02:39.2]} 11.
O-O-O {[%clk 0:03:05]} 11... Nf8 {[%clk 0:02:39.9]} 12. Ng3 {[%clk 0:03:04.5]}
12... Be6 {[%clk 0:02:06.5]} 13. Kb1 {[%clk 0:02:54.9]} 13... g6 {[%clk
0:01:35.3]} 14. Ne4 {[%clk 0:02:52.4]} 14... Be7 {[%clk 0:01:35.1]} 15. c4
{[%clk 0:02:47]} 15... b5 {[%clk 0:01:30.2]} 16. d5 {[%clk 0:02:02.5]} 16...
cxd5 {[%clk 0:01:27.8]} 17. cxd5 {[%clk 0:02:02.8]} 17... Qxd5 {[%clk
0:01:20.1]} 18. Nc3 {[%clk 0:02:02.7]} 18... Qe5 {[%clk 0:01:12.3]} 19. Rhe1
{[%clk 0:02:01.9]} 19... b4 {[%clk 0:00:58.7]} 20. Nb5 {[%clk 0:01:46.8]} 20...
Rec8 {[%clk 0:00:53.4]} 21. Qa4 {[%clk 0:01:43.1]} 21... Qxh2 {[%clk 0:00:52.5]}
22. g3 {[%clk 0:01:39.6]} 22... Qg2 {[%clk 0:00:48.9]} 23. Bd4 {[%clk
0:01:31.2]} 23... Qd5 {[%clk 0:00:43.7]} 24. Be4 {[%clk 0:01:22.7]} 24... Bf5
{[%clk 0:00:42.2]} 25. Bxf5 {[%clk 0:01:09.1]} 25... Qxf5+ {[%clk 0:00:43.1]}
26. Ka1 {[%clk 0:01:08.9]} 26... Ne6 {[%clk 0:00:37.6]} 27. Be3 {[%clk
0:01:05.5]} 27... Qc2 {[%clk 0:00:25.9]} 28. Qxc2 {[%clk 0:00:58.9]} 28... Rxc2
{[%clk 0:00:26.8]} 29. Nxa7 {[%clk 0:00:59.5]} 29... b3 {[%clk 0:00:21.5]} 30.
Rd7 {[%clk 0:00:49.1]} 30... Bb4 {[%clk 0:00:18.1]} 31. Red1 {[%clk 0:00:45.8]}
31... Kg7 {[%clk 0:00:15.3]} 32. Kb1 {[%clk 0:00:45.4]} 32... Re2 {[%clk
0:00:06.8]} 33. axb3 {[%clk 0:00:43.9]} 33... Nc5 {[%clk 0:00:05.1]} 34. R7d4
{[%clk 0:00:24.9]} 34... Rxa7 {[%clk 0:00:01.7]} 35. Rxb4 {[%clk 0:00:24.9]}
35... Rc7 {[%clk 0:00:01.7]} 36. Rc4 {[%clk 0:00:24.4]} 36... Ne6 {[%clk
0:00:02.4]} 37. Rdc1 {[%clk 0:00:22.1]} 37... Rb7 {[%clk 0:00:02]} 38. R1c2
{[%clk 0:00:22.2]} 38... Re1+ {[%clk 0:00:01.2]} 39. Rc1 {[%clk 0:00:22.8]}
39... Rxc1+ {[%clk 0:00:01.4]} 40. Kxc1 {[%clk 0:00:22.3]} 40... Rxb3 {[%clk
0:00:02.3]} 41. Kc2 {[%clk 0:00:22.9]} 41... Rb5 {[%clk 0:00:02.8]} 42. b4
{[%clk 0:00:23.3]} 42... f5 {[%clk 0:00:03.3]} 43. Kb3 {[%clk 0:00:23.1]} 43...
g5 {[%clk 0:00:03.4]} 44. Ka4 {[%clk 0:00:23.4]} 44... Rb7 {[%clk 0:00:02.4]}
45. b5 {[%clk 0:00:24.1]} 45... f4 {[%clk 0:00:02.6]} 46. gxf4 {[%clk
0:00:24.1]} 46... g4 {[%clk 0:00:01.9]} 47. f5 {[%clk 0:00:24.3]} 47... Nf8
{[%clk 0:00:01.1]} 48. b6 {[%clk 0:00:24.1]} 48... Nd7 {[%clk 0:00:01.5]} 49.
Kb5 {[%clk 0:00:24.1]} 49... Kf6 {[%clk 0:00:02.1]} 50. Rc7 {[%clk 0:00:20.9]}
1-0

[Event "Early-Titled-Tuesday-Blitz-September-12-2023"]
[Site "Chess.com"]
[Date "2023.09.12"]
[Round "2"]
[White "AliKa2810"]
[Black "chessfatbear"]
[Result "1-0"]
[WhiteElo "2579"]
[BlackElo "2832"]
[TimeControl "180+1"]
[EndTime "8:18:37 PDT"]
[Termination "AliKa2810 won on time"]

1. d4 {[%clk 0:02:55.2]} 1... d5 {[%clk 0:02:54.2]} 2. c4 {[%clk 0:02:54.9]}
2... e6 {[%clk 0:02:55.1]} 3. Nf3 {[%clk 0:02:53.6]} 3... Nf6 {[%clk 0:02:55.4]}
4. e3 {[%clk 0:02:53.7]} 4... Be7 {[%clk 0:02:55.2]} 5. b3 {[%clk 0:02:53]} 5...
O-O {[%clk 0:02:55]} 6. Bb2 {[%clk 0:02:53.4]} 6... b6 {[%clk 0:02:54.3]} 7. Bd3
{[%clk 0:02:53.9]} 7... Bb7 {[%clk 0:02:54.5]} 8. O-O {[%clk 0:02:54.5]} 8...
Nbd7 {[%clk 0:02:54.4]} 9. Nc3 {[%clk 0:02:49.7]} 9... c5 {[%clk 0:02:50.9]} 10.
cxd5 {[%clk 0:02:43.2]} 10... exd5 {[%clk 0:02:47.1]} 11. Ne2 {[%clk 0:02:43.3]}
11... Rc8 {[%clk 0:02:44.3]} 12. dxc5 {[%clk 0:02:39.8]} 12... bxc5 {[%clk
0:02:43.3]} 13. Ng3 {[%clk 0:02:34.6]} 13... Re8 {[%clk 0:02:38.5]} 14. Rc1
{[%clk 0:02:34.7]} 14... Bf8 {[%clk 0:02:36.5]} 15. Re1 {[%clk 0:02:27.4]} 15...
Qb6 {[%clk 0:02:35.5]} 16. Bf5 {[%clk 0:02:19.9]} 16... Rcd8 {[%clk 0:02:24.2]}
17. Qc2 {[%clk 0:02:17.2]} 17... h6 {[%clk 0:01:58.3]} 18. Red1 {[%clk
0:02:13.7]} 18... a5 {[%clk 0:01:41.9]} 19. Qc3 {[%clk 0:02:04.9]} 19... a4
{[%clk 0:01:29.6]} 20. Bb1 {[%clk 0:01:59.3]} 20... axb3 {[%clk 0:01:25.7]} 21.
axb3 {[%clk 0:02:00.2]} 21... Ne4 {[%clk 0:01:19.5]} 22. Nxe4 {[%clk 0:01:49]}
22... dxe4 {[%clk 0:01:20.4]} 23. Nd2 {[%clk 0:01:49.6]} 23... Qe6 {[%clk
0:01:10.4]} 24. Nc4 {[%clk 0:01:47.6]} 24... Nf6 {[%clk 0:01:08.2]} 25. h3
{[%clk 0:01:43.8]} 25... Nd5 {[%clk 0:01:06.3]} 26. Qe1 {[%clk 0:01:24.9]} 26...
Nb4 {[%clk 0:01:05.6]} 27. Qc3 {[%clk 0:01:19]} 27... Nd5 {[%clk 0:01:03.8]} 28.
Qe1 {[%clk 0:01:18.9]} 28... Nb4 {[%clk 0:00:57.2]} 29. Qc3 {[%clk 0:01:19]}
29... Qg6 {[%clk 0:00:56.3]} 30. Ne5 {[%clk 0:01:11.7]} 30... Qf5 {[%clk
0:00:50.4]} 31. Nc4 {[%clk 0:00:42.8]} 31... Nd3 {[%clk 0:00:33.6]} 32. Bxd3
{[%clk 0:00:42.4]} 32... Rxd3 {[%clk 0:00:33.8]} 33. Rxd3 {[%clk 0:00:41.1]}
33... exd3 {[%clk 0:00:34.7]} 34. f3 {[%clk 0:00:36.2]} 34... Qg6 {[%clk
0:00:27.1]} 35. e4 {[%clk 0:00:35.1]} 35... f5 {[%clk 0:00:27.8]} 36. exf5
{[%clk 0:00:19.3]} 36... Qxf5 {[%clk 0:00:28.7]} 37. Nd6 {[%clk 0:00:19.8]}
37... Qg6 {[%clk 0:00:19.9]} 38. Nxe8 {[%clk 0:00:19.7]} 38... Bxf3 {[%clk
0:00:17.2]} 39. Qd2 {[%clk 0:00:19.9]} 39... Be2 {[%clk 0:00:10.4]} 40. Nc7
{[%clk 0:00:16.1]} 40... Bd6 {[%clk 0:00:10.5]} 41. Nb5 {[%clk 0:00:15.2]} 41...
Bf8 {[%clk 0:00:02.1]} 42. Qe3 {[%clk 0:00:14.8]} 42... Qf5 {[%clk 0:00:01.8]}
43. Re1 {[%clk 0:00:14.6]} 43... Qf7 {[%clk 0:00:01.5]} 44. Nc3 {[%clk 0:00:14]}
44... Qxb3 {[%clk 0:00:01.2]} 45. Ba1 {[%clk 0:00:13.8]} 1-0

[Event "Early-Titled-Tuesday-Blitz-September-12-2023"]
[Site "Chess.com"]
[Date "2023.09.12"]
[Round "2"]
[White "Daniel_Salinas"]
[Black "only_strong_moves"]
[Result "1-0"]
[WhiteElo "2353"]
[BlackElo "2518"]
[TimeControl "180+1"]
[EndTime "8:18:37 PDT"]
[Termination "Daniel_Salinas won on time"]

1. e4 {[%clk 0:02:54.8]} 1... e6 {[%clk 0:03:00.3]} 2. d4 {[%clk 0:02:52.4]}
2... d5 {[%clk 0:03:00.6]} 3. Nd2 {[%clk 0:02:52.9]} 3... c5 {[%clk 0:03:00.2]}
4. Ngf3 {[%clk 0:02:52]} 4... cxd4 {[%clk 0:02:59.7]} 5. Nxd4 {[%clk 0:02:49]}
5... Nc6 {[%clk 0:02:59.2]} 6. Bb5 {[%clk 0:02:47.6]} 6... Bd7 {[%clk
0:02:59.7]} 7. Nxc6 {[%clk 0:02:48]} 7... bxc6 {[%clk 0:03:00.6]} 8. Bd3 {[%clk
0:02:48.3]} 8... Bd6 {[%clk 0:03:00.6]} 9. Qe2 {[%clk 0:02:33.8]} 9... e5 {[%clk
0:03:00.6]} 10. c4 {[%clk 0:02:19]} 10... d4 {[%clk 0:02:59.4]} 11. c5 {[%clk
0:02:19.4]} 11... Bxc5 {[%clk 0:02:54.5]} 12. Nc4 {[%clk 0:02:19.4]} 12... Qc7
{[%clk 0:02:37]} 13. O-O {[%clk 0:02:09.2]} 13... Ne7 {[%clk 0:02:35.4]} 14. f4
{[%clk 0:02:06.9]} 14... Bd6 {[%clk 0:02:22.6]} 15. fxe5 {[%clk 0:01:47.8]}
15... Bxe5 {[%clk 0:02:22.3]} 16. Nxe5 {[%clk 0:01:48.5]} 16... Qxe5 {[%clk
0:02:23.1]} 17. Bf4 {[%clk 0:01:48.8]} 17... Qa5 {[%clk 0:02:17.6]} 18. Bd6
{[%clk 0:01:47.3]} 18... Nc8 {[%clk 0:02:11]} 19. Ba3 {[%clk 0:01:39.4]} 19...
Qe5 {[%clk 0:02:04]} 20. Rac1 {[%clk 0:01:36.2]} 20... Ne7 {[%clk 0:01:27.8]}
21. Rc5 {[%clk 0:01:25.4]} 21... Qc7 {[%clk 0:01:26.8]} 22. Rc4 {[%clk
0:00:56.3]} 22... Be6 {[%clk 0:01:19.7]} 23. Rxd4 {[%clk 0:00:52.7]} 23... O-O
{[%clk 0:01:20]} 24. Bd6 {[%clk 0:00:43.1]} 24... Qb7 {[%clk 0:01:16.9]} 25. e5
{[%clk 0:00:32.8]} 25... Ng6 {[%clk 0:01:07.7]} 26. Bxf8 {[%clk 0:00:30.1]}
26... Rxf8 {[%clk 0:01:08.6]} 27. Kh1 {[%clk 0:00:23.7]} 27... Bxa2 {[%clk
0:01:02.5]} 28. Bc4 {[%clk 0:00:19.5]} 28... Bxc4 {[%clk 0:01:02.5]} 29. Rxc4
{[%clk 0:00:18.9]} 29... Re8 {[%clk 0:01:02.6]} 30. Rc5 {[%clk 0:00:16.3]} 30...
h6 {[%clk 0:00:59.6]} 31. Qc4 {[%clk 0:00:15.9]} 31... Nxe5 {[%clk 0:00:57.4]}
32. Qc3 {[%clk 0:00:15.6]} 32... Ng4 {[%clk 0:00:50.9]} 33. h3 {[%clk
0:00:13.4]} 33... Ne3 {[%clk 0:00:35]} 34. Re1 {[%clk 0:00:12.4]} 34... Qe7
{[%clk 0:00:35.6]} 35. Rxc6 {[%clk 0:00:10.6]} 35... Qg5 {[%clk 0:00:33.5]} 36.
Qd2 {[%clk 0:00:08.4]} 36... Re5 {[%clk 0:00:18.1]} 37. Rc8+ {[%clk 0:00:06.6]}
37... Kh7 {[%clk 0:00:17.5]} 38. Rc3 {[%clk 0:00:05.8]} 38... Ng4 {[%clk
0:00:09.9]} 39. Qc2+ {[%clk 0:00:03.2]} 39... g6 {[%clk 0:00:10.4]} 40. Rxe5
{[%clk 0:00:02.7]} 40... Nxe5 {[%clk 0:00:11.1]} 41. Rc5 {[%clk 0:00:03]} 41...
Qe3 {[%clk 0:00:09.7]} 42. Rc7 {[%clk 0:00:02.8]} 42... Qe1+ {[%clk 0:00:09.6]}
43. Kh2 {[%clk 0:00:03.3]} 43... Qe3 {[%clk 0:00:08.5]} 44. Qc3 {[%clk
0:00:02.8]} 44... Qf4+ {[%clk 0:00:09]} 45. Kg1 {[%clk 0:00:03.4]} 45... a6
{[%clk 0:00:06.9]} 46. Re7 {[%clk 0:00:03.7]} 1-0